[Event "FIDE World Rapid Chess Championship 2021"]
[White "Karjakin, Sergey"]
[Black "Mitrabha, Guha"]
[WhiteFideId "14109603"]
[BlackFideId "5057000"]
[WhiteElo "2757"]
[BlackElo "2107"]
[Result "1/2-1/2"]
[Round "09"]
[TimeControl "900+10"]
[Date "2021.12.27"]
[WhiteClock "0:00:15"]
[BlackClock "0:06:46"]

1. e4 {[%clk 0:15:00]}  c6 {[%clk 0:15:00]} 2. Nf3 {[%clk 0:15:00]}  d5 {[%clk 0:15:00]} 3. exd5 {[%clk 0:15:00]}  cxd5 {[%clk 0:15:00]} 4. Ne5 {[%clk 0:15:00]}  Nc6 {[%clk 0:15:00]} 5. Bb5 {[%clk 0:15:00]}  Bd7 {[%clk 0:15:00]} 6. Bxc6 {[%clk 0:15:00]}  Bxc6 {[%clk 0:15:00]} 7. O-O {[%clk 0:15:00]}  Nf6 {[%clk 0:15:00]} 8. d4 {[%clk 0:15:00]}  e6 {[%clk 0:15:00]} 9. c3 {[%clk 0:15:00]}  Bd6 {[%clk 0:15:00]} 10. Re1 {[%clk 0:15:00]}  Qc7 {[%clk 0:15:00]} 11. Bf4 {[%clk 0:15:57]}  O-O {[%clk 0:15:56]} 12. Nd2 {[%clk 0:15:57]}  Rae8 {[%clk 0:15:56]} 13. Bg3 {[%clk 0:14:34]}  Nd7 {[%clk 0:14:50]} 14. Nxd7 {[%clk 0:11:01]}  Qxd7 {[%clk 0:14:47]} 15. Re3 {[%clk 0:11:01]}  f6 {[%clk 0:14:47]} 16. Nf3 {[%clk 0:09:25]}  Re7 {[%clk 0:14:57]} 17. Bxd6 {[%clk 0:09:25]}  Qxd6 {[%clk 0:14:57]} 18. Qe2 {[%clk 0:09:25]}  Rfe8 {[%clk 0:14:57]} 19. Re1 {[%clk 0:09:25]}  a5 {[%clk 0:14:57]} 20. g3 {[%clk 0:09:25]}  Bd7 {[%clk 0:14:38]} 21. Qd3 {[%clk 0:07:09]}  Qb6 {[%clk 0:14:38]} 22. Qd2 {[%clk 0:07:09]}  Qd6 {[%clk 0:14:38]} 23. Nh4 {[%clk 0:05:04]}  Bb5 {[%clk 0:14:32]} 24. f4 {[%clk 0:05:04]}  b6 {[%clk 0:14:32]} 25. Nf3 {[%clk 0:05:04]}  Rc8 {[%clk 0:14:32]} 26. Kg2 {[%clk 0:05:04]}  Be8 {[%clk 0:13:01]} 27. Nh4 {[%clk 0:04:53]}  Bg6 {[%clk 0:13:01]} 28. Nxg6 {[%clk 0:04:03]}  hxg6 {[%clk 0:11:59]} 29. Qe2 {[%clk 0:04:03]}  Kf7 {[%clk 0:11:59]} 30. h4 {[%clk 0:04:03]}  Rh8 {[%clk 0:11:59]} 31. Qb5 {[%clk 0:04:03]}  Rc8 {[%clk 0:11:59]} 32. Qe2 {[%clk 0:04:03]}  Rh8 {[%clk 0:11:59]} 33. Qb5 {[%clk 0:04:03]}  Rc8 {[%clk 0:11:59]} 34. a4 {[%clk 0:04:03]}  Qc6 {[%clk 0:11:59]} 35. Qxc6 {[%clk 0:04:03]}  Rxc6 {[%clk 0:11:59]} 36. Kf2 {[%clk 0:04:03]}  Rb7 {[%clk 0:11:59]} 37. Ra1 {[%clk 0:03:46]}  Rc4 {[%clk 0:11:42]} 38. Re2 {[%clk 0:03:46]}  Re7 {[%clk 0:11:42]} 39. Ra3 {[%clk 0:03:46]}  Rb7 {[%clk 0:11:42]} 40. Ke1 {[%clk 0:03:46]}  Ke7 {[%clk 0:11:42]} 41. Kd2 {[%clk 0:03:46]}  Kd6 {[%clk 0:11:42]} 42. Kd3 {[%clk 0:03:46]}  Rc8 {[%clk 0:11:42]} 43. Re1 {[%clk 0:03:46]}  Rbc7 {[%clk 0:11:01]} 44. Rb3 {[%clk 0:03:47]}  Rc6 {[%clk 0:11:01]} 45. Rb5 {[%clk 0:03:47]}  Rh8 {[%clk 0:11:01]} 46. b3 {[%clk 0:03:47]}  g5 {[%clk 0:11:01]} 47. fxg5 {[%clk 0:03:47]}  fxg5 {[%clk 0:11:01]} 48. hxg5 {[%clk 0:03:47]}  Rh5 {[%clk 0:11:01]} 49. Re5 {[%clk 0:03:47]}  Rh3 {[%clk 0:11:01]} 50. Re3 {[%clk 0:03:08]}  Rh5 {[%clk 0:10:55]} 51. g6 {[%clk 0:03:08]}  Rg5 {[%clk 0:10:55]} 52. c4 {[%clk 0:03:08]}  Rxg6 {[%clk 0:10:55]} 53. Rxb6 {[%clk 0:03:01]}  dxc4+ {[%clk 0:10:58]} 54. bxc4 {[%clk 0:03:01]}  Rxb6 {[%clk 0:10:58]} 55. c5+ {[%clk 0:03:01]}  Kc6 {[%clk 0:10:58]} 56. cxb6 {[%clk 0:03:01]}  Kxb6 {[%clk 0:10:58]} 57. Kc4 {[%clk 0:03:01]}  Kc7 {[%clk 0:10:58]} 58. Kc5 {[%clk 0:03:01]}  Kd7 {[%clk 0:09:37]} 59. Kb6 {[%clk 0:00:53]}  Rg5 {[%clk 0:09:37]} 60. Re5 {[%clk 0:00:53]}  Rxg3 {[%clk 0:07:45]} 61. Rxa5 {[%clk 0:00:40]}  Ra3 {[%clk 0:07:45]} 62. Kc5 {[%clk 0:00:40]}  Rc3+ {[%clk 0:07:45]} 63. Kb4 {[%clk 0:00:40]}  Rc1 {[%clk 0:06:24]} 64. Rg5 {[%clk 0:00:45]}  Kd6 {[%clk 0:06:24]} 65. a5 {[%clk 0:00:45]}  Rb1+ {[%clk 0:06:24]} 66. Kc4 {[%clk 0:00:45]}  Rc1+ {[%clk 0:06:24]} 67. Kb4 {[%clk 0:00:45]}  Rb1+ {[%clk 0:06:24]} 68. Kc4 {[%clk 0:00:45]}  Rc1+ {[%clk 0:06:24]} 69. Kb5 {[%clk 0:00:45]}  Rb1+ {[%clk 0:06:24]} 70. Ka6 {[%clk 0:00:45]}  Rb4 {[%clk 0:06:24]} 71. Rxg7 {[%clk 0:00:45]}  Rxd4 {[%clk 0:06:24]} 72. Kb5 {[%clk 0:00:45]}  Rd1 {[%clk 0:06:24]} 73. a6 {[%clk 0:00:45]}  Rb1+ {[%clk 0:06:24]} 74. Ka5 {[%clk 0:00:45]}  Ra1+ {[%clk 0:06:24]} 75. Kb6 {[%clk 0:00:45]}  Rb1+ {[%clk 0:06:24]} 76. Ka7 {[%clk 0:00:15]}  e5 {[%clk 0:06:46]} 77. Rb7 {[%clk 0:00:15]}  Ra1 {[%clk 0:06:46]} 78. Rb3 {[%clk 0:00:15]}  e4 {[%clk 0:06:46]} 79. Kb6 {[%clk 0:00:15]}  Kd5 {[%clk 0:06:46]} 80. a7 {[%clk 0:00:15]}  Kc4 {[%clk 0:06:46]} 81. Rh3 {[%clk 0:00:15]}  Kd4 {[%clk 0:06:46]} 82. Rh8 {[%clk 0:00:15]}  e3 {[%clk 0:06:46]} 83. a8=Q {[%clk 0:00:15]}  Rxa8 {[%clk 0:06:46]} 84. Rxa8 {[%clk 0:00:15]}  e2 {[%clk 0:06:46]} 85. Re8 {[%clk 0:00:15]}  Kd3 {[%clk 0:06:46]} 86. Rxe2 {[%clk 0:00:15]}  Kxe2 {[%clk 0:06:46]} 1/2-1/2


[Site "http://www.Chess.com"]

[Event "FIDE World Rapid Chess Championship 2021"]
[White "Ponkratov, Pavel"]
[Black "Vachier-Lagrave, Maxime"]
[WhiteFideId "4157800"]
[BlackFideId "623539"]
[WhiteElo "2614"]
[BlackElo "2773"]
[Result "1/2-1/2"]
[Round "09"]
[TimeControl "900+10"]
[Date "2021.12.27"]
[WhiteClock "0:00:33"]
[BlackClock "0:01:46"]

1. e4 {[%clk 0:15:00]}  c5 {[%clk 0:15:00]} 2. Nf3 {[%clk 0:15:00]}  d6 {[%clk 0:15:00]} 3. d4 {[%clk 0:15:00]}  cxd4 {[%clk 0:15:00]} 4. Nxd4 {[%clk 0:15:00]}  Nf6 {[%clk 0:15:00]} 5. Nc3 {[%clk 0:15:00]}  a6 {[%clk 0:15:00]} 6. a4 {[%clk 0:15:00]}  e5 {[%clk 0:15:00]} 7. Nf3 {[%clk 0:15:00]}  Be7 {[%clk 0:15:00]} 8. g3 {[%clk 0:15:00]}  O-O {[%clk 0:15:00]} 9. Bg2 {[%clk 0:15:00]}  Nc6 {[%clk 0:15:00]} 10. O-O {[%clk 0:15:00]}  Be6 {[%clk 0:15:00]} 11. Nh4 {[%clk 0:15:00]}  Nd4 {[%clk 0:15:00]} 12. Be3 {[%clk 0:16:40]}  Ng4 {[%clk 0:13:57]} 13. Bxd4 {[%clk 0:14:10]}  Bxh4 {[%clk 0:13:57]} 14. gxh4 {[%clk 0:14:10]}  Qxh4 {[%clk 0:13:57]} 15. h3 {[%clk 0:14:10]}  exd4 {[%clk 0:13:57]} 16. Qxd4 {[%clk 0:14:10]}  Nf6 {[%clk 0:13:57]} 17. Qxd6 {[%clk 0:14:10]}  Nh5 {[%clk 0:13:57]} 18. Qh2 {[%clk 0:14:20]}  Nf4 {[%clk 0:13:20]} 19. Qg3 {[%clk 0:11:59]}  Qh6 {[%clk 0:13:20]} 20. h4 {[%clk 0:11:59]}  Rac8 {[%clk 0:13:20]} 21. Rfe1 {[%clk 0:11:59]}  Rc5 {[%clk 0:12:06]} 22. Rad1 {[%clk 0:10:54]}  Rh5 {[%clk 0:12:06]} 23. Nd5 {[%clk 0:10:54]}  Rxh4 {[%clk 0:10:01]} 24. Nxf4 {[%clk 0:09:51]}  Rxf4 {[%clk 0:10:01]} 25. Rd6 {[%clk 0:09:51]}  Rf6 {[%clk 0:09:02]} 26. Re3 {[%clk 0:08:22]}  Rg6 {[%clk 0:09:02]} 27. Qh2 {[%clk 0:08:22]}  Qg5 {[%clk 0:09:02]} 28. c3 {[%clk 0:08:22]}  Qa5 {[%clk 0:09:03]} 29. Rd4 {[%clk 0:07:12]}  Bb3 {[%clk 0:09:03]} 30. f4 {[%clk 0:05:39]}  Bxa4 {[%clk 0:04:48]} 31. f5 {[%clk 0:05:39]}  Rh6 {[%clk 0:04:48]} 32. b4 {[%clk 0:05:39]}  Qb6 {[%clk 0:04:48]} 33. Qf4 {[%clk 0:05:39]}  Bc6 {[%clk 0:04:48]} 34. Rg3 {[%clk 0:05:39]}  Kh8 {[%clk 0:04:48]} 35. e5 {[%clk 0:05:01]}  Bxg2 {[%clk 0:03:57]} 36. f6 {[%clk 0:05:01]}  Rg6 {[%clk 0:03:57]} 37. Rxg6 {[%clk 0:05:01]}  fxg6 {[%clk 0:03:57]} 38. Kxg2 {[%clk 0:05:01]}  Qc6+ {[%clk 0:02:56]} 39. Kh2 {[%clk 0:01:06]}  gxf6 {[%clk 0:02:56]} 40. Rd6 {[%clk 0:01:06]}  Qc7 {[%clk 0:02:56]} 41. Rxf6 {[%clk 0:01:06]}  Rxf6 {[%clk 0:02:56]} 42. Qxf6+ {[%clk 0:00:22]}  Kg8 {[%clk 0:02:00]} 43. Kg1 {[%clk 0:00:22]}  g5 {[%clk 0:02:00]} 44. e6 {[%clk 0:00:22]}  Qg3+ {[%clk 0:02:00]} 45. Kh1 {[%clk 0:00:22]}  Qe1+ {[%clk 0:02:00]} 46. Kg2 {[%clk 0:00:22]}  Qe2+ {[%clk 0:02:00]} 47. Kg1 {[%clk 0:00:22]}  Qg4+ {[%clk 0:02:00]} 48. Kh1 {[%clk 0:00:22]}  Qe4+ {[%clk 0:02:00]} 49. Kg1 {[%clk 0:00:22]}  Qg4+ {[%clk 0:01:46]} 50. Kh1 {[%clk 0:00:33]} 1/2-1/2


[Site "http://www.Chess.com"]

[Event "FIDE World Rapid Chess Championship 2021"]
[White "Wojtaszek, Radoslaw"]
[Black "Timofeev, Artyom"]
[WhiteFideId "1118358"]
[BlackFideId "4140419"]
[WhiteElo "2743"]
[BlackElo "2591"]
[Result "1/2-1/2"]
[Round "09"]
[TimeControl "900+10"]
[Date "2021.12.27"]
[WhiteClock "0:00:46"]
[BlackClock "0:03:10"]

1. d4 {[%clk 0:15:00]}  d5 {[%clk 0:15:00]} 2. c4 {[%clk 0:15:00]}  e6 {[%clk 0:15:00]} 3. Nc3 {[%clk 0:15:00]}  c6 {[%clk 0:15:00]} 4. e3 {[%clk 0:15:00]}  Bd6 {[%clk 0:15:00]} 5. Bd3 {[%clk 0:15:00]}  f5 {[%clk 0:15:00]} 6. f4 {[%clk 0:15:00]}  Nf6 {[%clk 0:15:00]} 7. Nf3 {[%clk 0:15:00]}  O-O {[%clk 0:15:00]} 8. O-O {[%clk 0:15:00]}  Bd7 {[%clk 0:15:00]} 9. Qb3 {[%clk 0:15:49]}  b6 {[%clk 0:14:47]} 10. Bd2 {[%clk 0:15:01]}  a6 {[%clk 0:12:38]} 11. Rac1 {[%clk 0:15:01]}  b5 {[%clk 0:10:50]} 12. cxd5 {[%clk 0:15:01]}  cxd5 {[%clk 0:10:50]} 13. Ne5 {[%clk 0:15:01]}  Be8 {[%clk 0:10:50]} 14. Ne2 {[%clk 0:13:57]}  Qe7 {[%clk 0:09:54]} 15. a3 {[%clk 0:12:00]}  Nbd7 {[%clk 0:06:20]} 16. Ba5 {[%clk 0:10:29]}  Ng4 {[%clk 0:06:20]} 17. Nxg4 {[%clk 0:09:55]}  fxg4 {[%clk 0:06:01]} 18. Bc7 {[%clk 0:09:55]}  Nf6 {[%clk 0:06:09]} 19. Qc2 {[%clk 0:06:13]}  Bd7 {[%clk 0:06:09]} 20. Bxd6 {[%clk 0:06:01]}  Qxd6 {[%clk 0:03:48]} 21. Qc7 {[%clk 0:06:01]}  Qxc7 {[%clk 0:03:48]} 22. Rxc7 {[%clk 0:06:01]}  Rfc8 {[%clk 0:03:48]} 23. Rfc1 {[%clk 0:06:01]}  Kf7 {[%clk 0:03:48]} 24. f5 {[%clk 0:05:50]}  Ke7 {[%clk 0:03:14]} 25. fxe6 {[%clk 0:02:17]}  Rxc7 {[%clk 0:03:23]} 26. Rxc7 {[%clk 0:02:17]}  Kxe6 {[%clk 0:03:23]} 27. Rc1 {[%clk 0:02:17]}  Kd6 {[%clk 0:03:23]} 28. Nc3 {[%clk 0:02:17]}  Rb8 {[%clk 0:03:23]} 29. Kf2 {[%clk 0:01:33]}  g6 {[%clk 0:03:05]} 30. e4 {[%clk 0:01:33]}  dxe4 {[%clk 0:03:05]} 31. Nxe4+ {[%clk 0:01:33]}  Nxe4+ {[%clk 0:03:05]} 32. Bxe4 {[%clk 0:01:33]}  b4 {[%clk 0:03:05]} 33. Rc5 {[%clk 0:01:33]}  bxa3 {[%clk 0:03:05]} 34. bxa3 {[%clk 0:01:33]}  Rb2+ {[%clk 0:03:05]} 35. Ke3 {[%clk 0:01:33]}  Rb3+ {[%clk 0:03:05]} 36. Kf4 {[%clk 0:01:33]}  Rxa3 {[%clk 0:03:05]} 37. Rd5+ {[%clk 0:01:33]}  Ke7 {[%clk 0:03:05]} 38. Re5+ {[%clk 0:00:46]}  Kd6 {[%clk 0:03:10]} 39. Rd5+ {[%clk 0:00:46]}  Ke7 {[%clk 0:03:10]} 40. Re5+ {[%clk 0:00:46]}  Kd6 {[%clk 0:03:10]} 41. Rd5+ {[%clk 0:00:46]} 1/2-1/2


[Site "http://www.Chess.com"]

[Event "FIDE World Rapid Chess Championship 2021"]
[White "Salem, A.R. Saleh"]
[Black "Bluebaum, Matthias"]
[WhiteFideId "9301348"]
[BlackFideId "24651516"]
[WhiteElo "2729"]
[BlackElo "2575"]
[Result "1/2-1/2"]
[Round "09"]
[TimeControl "900+10"]
[Date "2021.12.27"]
[WhiteClock "0:00:29"]
[BlackClock "0:00:35"]

1. d4 {[%clk 0:15:00]}  d5 {[%clk 0:15:00]} 2. c4 {[%clk 0:15:00]}  e6 {[%clk 0:15:00]} 3. Nc3 {[%clk 0:15:00]}  Nf6 {[%clk 0:15:00]} 4. cxd5 {[%clk 0:15:00]}  exd5 {[%clk 0:15:00]} 5. Bg5 {[%clk 0:15:00]}  c6 {[%clk 0:15:00]} 6. e3 {[%clk 0:15:00]}  h6 {[%clk 0:15:00]} 7. Bh4 {[%clk 0:15:00]}  Be7 {[%clk 0:15:00]} 8. Bd3 {[%clk 0:15:00]}  O-O {[%clk 0:15:00]} 9. Nge2 {[%clk 0:15:00]}  Re8 {[%clk 0:15:00]} 10. O-O {[%clk 0:15:00]}  a5 {[%clk 0:15:00]} 11. a4 {[%clk 0:15:00]}  Nh5 {[%clk 0:15:00]} 12. Bxe7 {[%clk 0:15:00]}  Qxe7 {[%clk 0:15:00]} 13. Qd2 {[%clk 0:15:00]}  Nd7 {[%clk 0:15:29]} 14. Rae1 {[%clk 0:16:26]}  Nb6 {[%clk 0:15:29]} 15. Nf4 {[%clk 0:16:26]}  Nxf4 {[%clk 0:15:23]} 16. exf4 {[%clk 0:14:15]}  Qf8 {[%clk 0:15:23]} 17. Rxe8 {[%clk 0:14:15]}  Qxe8 {[%clk 0:15:23]} 18. f5 {[%clk 0:14:15]}  Qd8 {[%clk 0:13:51]} 19. Qf4 {[%clk 0:14:01]}  Bd7 {[%clk 0:12:08]} 20. h4 {[%clk 0:14:01]}  Qb8 {[%clk 0:12:08]} 21. Qg4 {[%clk 0:11:26]}  Qd6 {[%clk 0:11:22]} 22. b3 {[%clk 0:11:26]}  Be8 {[%clk 0:10:28]} 23. Bc2 {[%clk 0:10:19]}  Nd7 {[%clk 0:07:04]} 24. Qf3 {[%clk 0:10:19]}  Nf6 {[%clk 0:06:41]} 25. g4 {[%clk 0:04:42]}  c5 {[%clk 0:04:00]} 26. Ne2 {[%clk 0:01:49]}  Ne4 {[%clk 0:03:52]} 27. Qe3 {[%clk 0:01:49]}  cxd4 {[%clk 0:03:52]} 28. Qxd4 {[%clk 0:01:38]}  Qe7 {[%clk 0:02:36]} 29. f3 {[%clk 0:01:38]}  Rc8 {[%clk 0:02:36]} 30. Bxe4 {[%clk 0:01:38]}  dxe4 {[%clk 0:02:36]} 31. f6 {[%clk 0:01:38]}  Qxf6 {[%clk 0:02:36]} 32. Qxf6 {[%clk 0:01:38]}  gxf6 {[%clk 0:02:36]} 33. fxe4 {[%clk 0:01:38]}  Bd7 {[%clk 0:02:36]} 34. Rxf6 {[%clk 0:01:38]}  Bxg4 {[%clk 0:02:36]} 35. Nf4 {[%clk 0:00:18]}  Re8 {[%clk 0:02:08]} 36. Nd5 {[%clk 0:00:18]}  Rxe4 {[%clk 0:02:08]} 37. Rxh6 {[%clk 0:00:18]}  Kg7 {[%clk 0:02:08]} 38. Rb6 {[%clk 0:00:18]}  Be6 {[%clk 0:02:08]} 39. Nc7 {[%clk 0:00:18]}  Rxh4 {[%clk 0:00:35]} 40. Nxe6+ {[%clk 0:00:29]}  fxe6 {[%clk 0:00:35]} 41. Rxb7+ {[%clk 0:00:29]} 1/2-1/2


[Site "http://www.Chess.com"]

[Event "FIDE World Rapid Chess Championship 2021"]
[White "Aronian, Levon"]
[Black "Efimenko, Zahar"]
[WhiteFideId "13300474"]
[BlackFideId "14107201"]
[WhiteElo "2728"]
[BlackElo "2609"]
[Result "1-0"]
[Round "09"]
[TimeControl "900+10"]
[Date "2021.12.27"]
[WhiteClock "0:05:04"]
[BlackClock "0:01:13"]

1. d4 {[%clk 0:15:00]}  d6 {[%clk 0:15:00]} 2. e4 {[%clk 0:15:00]}  g6 {[%clk 0:15:00]} 3. Nf3 {[%clk 0:15:00]}  Bg7 {[%clk 0:15:00]} 4. Bc4 {[%clk 0:15:00]}  Nf6 {[%clk 0:15:00]} 5. Qe2 {[%clk 0:15:00]}  c6 {[%clk 0:15:00]} 6. Bb3 {[%clk 0:15:00]}  O-O {[%clk 0:15:00]} 7. O-O {[%clk 0:15:00]}  Bg4 {[%clk 0:14:57]} 8. Nbd2 {[%clk 0:14:56]}  e5 {[%clk 0:14:57]} 9. dxe5 {[%clk 0:13:39]}  dxe5 {[%clk 0:14:32]} 10. h3 {[%clk 0:13:39]}  Bxf3 {[%clk 0:14:32]} 11. Nxf3 {[%clk 0:13:39]}  Nbd7 {[%clk 0:14:32]} 12. c3 {[%clk 0:13:39]}  Qe7 {[%clk 0:14:32]} 13. a4 {[%clk 0:13:39]}  Nc5 {[%clk 0:14:32]} 14. Bc2 {[%clk 0:13:39]}  a5 {[%clk 0:14:32]} 15. Qc4 {[%clk 0:13:39]}  Nfd7 {[%clk 0:14:00]} 16. Rd1 {[%clk 0:13:56]}  Ne6 {[%clk 0:10:42]} 17. Be3 {[%clk 0:13:07]}  Kh8 {[%clk 0:10:42]} 18. Rd2 {[%clk 0:13:07]}  f5 {[%clk 0:09:29]} 19. Rad1 {[%clk 0:12:09]}  Ndc5 {[%clk 0:09:29]} 20. Rd6 {[%clk 0:11:58]}  fxe4 {[%clk 0:06:50]} 21. Bxe4 {[%clk 0:11:58]}  Nxe4 {[%clk 0:06:55]} 22. Qxe6 {[%clk 0:09:42]}  Rae8 {[%clk 0:06:55]} 23. Qxe7 {[%clk 0:09:42]}  Rxe7 {[%clk 0:06:55]} 24. Rd7 {[%clk 0:09:42]}  Rxd7 {[%clk 0:04:20]} 25. Rxd7 {[%clk 0:10:03]}  b5 {[%clk 0:04:20]} 26. Ra7 {[%clk 0:10:03]}  Rb8 {[%clk 0:04:20]} 27. Rxa5 {[%clk 0:10:03]}  Kg8 {[%clk 0:04:20]} 28. Ra6 {[%clk 0:10:03]}  bxa4 {[%clk 0:04:20]} 29. Rxa4 {[%clk 0:10:03]}  Nd6 {[%clk 0:04:20]} 30. Bc5 {[%clk 0:09:34]}  Nb5 {[%clk 0:03:37]} 31. Ra6 {[%clk 0:09:34]}  Rc8 {[%clk 0:03:37]} 32. Ng5 {[%clk 0:09:34]}  h6 {[%clk 0:03:37]} 33. Ne4 {[%clk 0:09:34]}  Bf8 {[%clk 0:03:37]} 34. Bxf8 {[%clk 0:09:11]}  Kxf8 {[%clk 0:02:31]} 35. Rb6 {[%clk 0:09:11]}  Rc7 {[%clk 0:02:31]} 36. Rb8+ {[%clk 0:09:11]}  Kf7 {[%clk 0:02:31]} 37. Rh8 {[%clk 0:09:11]}  Kg7 {[%clk 0:02:40]} 38. Re8 {[%clk 0:07:29]}  Ra7 {[%clk 0:02:40]} 39. Rxe5 {[%clk 0:07:29]}  Ra2 {[%clk 0:02:40]} 40. Re7+ {[%clk 0:07:29]}  Kf8 {[%clk 0:02:40]} 41. Re6 {[%clk 0:07:29]}  Kf7 {[%clk 0:02:40]} 42. Rf6+ {[%clk 0:07:29]}  Kg7 {[%clk 0:02:01]} 43. Rxc6 {[%clk 0:07:01]}  Rxb2 {[%clk 0:02:01]} 44. h4 {[%clk 0:07:01]}  h5 {[%clk 0:02:01]} 45. Kh2 {[%clk 0:07:01]}  Rb1 {[%clk 0:02:01]} 46. Kg3 {[%clk 0:07:01]}  Re1 {[%clk 0:02:01]} 47. Kf4 {[%clk 0:07:01]}  Kh6 {[%clk 0:02:01]} 48. Rc5 {[%clk 0:05:10]}  Rb1 {[%clk 0:01:43]} 49. f3 {[%clk 0:05:10]}  Rb2 {[%clk 0:01:43]} 50. g3 {[%clk 0:05:10]}  Rb3 {[%clk 0:01:43]} 51. Rc6 {[%clk 0:05:10]}  Ra3 {[%clk 0:01:43]} 52. Rc5 {[%clk 0:05:10]}  Rb3 {[%clk 0:01:43]} 53. Ke5 {[%clk 0:05:10]}  Kg7 {[%clk 0:01:13]} 54. c4 {[%clk 0:05:04]}  Nc3 {[%clk 0:01:13]} 55. Rc7+ {[%clk 0:05:04]}  Kf8 {[%clk 0:01:13]} 56. Nc5 {[%clk 0:05:04]} 1-0


[Site "http://www.Chess.com"]

[Event "FIDE World Rapid Chess Championship 2021"]
[White "Najer, Evgeniy"]
[Black "Korobov, Anton"]
[WhiteFideId "4118987"]
[BlackFideId "14105730"]
[WhiteElo "2565"]
[BlackElo "2689"]
[Result "1/2-1/2"]
[Round "09"]
[TimeControl "900+10"]
[Date "2021.12.27"]
[WhiteClock "0:00:37"]
[BlackClock "0:02:19"]

1. e4 {[%clk 0:15:00]}  c5 {[%clk 0:15:00]} 2. Nf3 {[%clk 0:15:00]}  d6 {[%clk 0:15:00]} 3. d4 {[%clk 0:15:00]}  cxd4 {[%clk 0:15:00]} 4. Nxd4 {[%clk 0:15:00]}  Nf6 {[%clk 0:15:00]} 5. Nc3 {[%clk 0:15:00]}  a6 {[%clk 0:15:00]} 6. Be2 {[%clk 0:15:00]}  e6 {[%clk 0:15:00]} 7. O-O {[%clk 0:15:00]}  Be7 {[%clk 0:15:00]} 8. f4 {[%clk 0:15:00]}  O-O {[%clk 0:15:00]} 9. a4 {[%clk 0:15:00]}  Qc7 {[%clk 0:15:00]} 10. a5 {[%clk 0:12:32]}  Nc6 {[%clk 0:15:39]} 11. Kh1 {[%clk 0:12:32]}  Nxa5 {[%clk 0:15:39]} 12. e5 {[%clk 0:12:32]}  dxe5 {[%clk 0:15:39]} 13. fxe5 {[%clk 0:12:32]}  Nd7 {[%clk 0:15:39]} 14. Bf4 {[%clk 0:12:32]}  Nxe5 {[%clk 0:15:39]} 15. Bd3 {[%clk 0:12:49]}  g6 {[%clk 0:13:20]} 16. Qe1 {[%clk 0:12:14]}  Nxd3 {[%clk 0:09:56]} 17. Bxc7 {[%clk 0:07:22]}  Nxe1 {[%clk 0:09:56]} 18. Bxa5 {[%clk 0:07:22]}  Nxg2 {[%clk 0:10:03]} 19. Kxg2 {[%clk 0:06:02]}  b5 {[%clk 0:10:03]} 20. Rad1 {[%clk 0:06:09]}  Bb7+ {[%clk 0:07:00]} 21. Nf3 {[%clk 0:06:09]}  Bc6 {[%clk 0:07:00]} 22. Kg3 {[%clk 0:04:12]}  Rac8 {[%clk 0:06:08]} 23. Ne5 {[%clk 0:04:12]}  b4 {[%clk 0:06:08]} 24. Nxc6 {[%clk 0:03:14]}  Rxc6 {[%clk 0:05:34]} 25. Na2 {[%clk 0:03:14]}  Rxc2 {[%clk 0:05:34]} 26. Rd7 {[%clk 0:03:14]}  Rxb2 {[%clk 0:03:52]} 27. Rxe7 {[%clk 0:02:14]}  Rxa2 {[%clk 0:03:52]} 28. Bxb4 {[%clk 0:02:14]}  Rb2 {[%clk 0:03:52]} 29. Bd6 {[%clk 0:02:31]}  Rd2 {[%clk 0:02:24]} 30. Bc5 {[%clk 0:02:31]}  Rc2 {[%clk 0:02:24]} 31. Bd6 {[%clk 0:02:31]}  Rc6 {[%clk 0:02:24]} 32. Rd7 {[%clk 0:02:31]}  Rc3+ {[%clk 0:02:24]} 33. Rf3 {[%clk 0:00:23]}  Rxf3+ {[%clk 0:02:09]} 34. Kxf3 {[%clk 0:00:23]}  Ra8 {[%clk 0:02:09]} 35. Kf4 {[%clk 0:00:23]}  h6 {[%clk 0:02:09]} 36. Ke5 {[%clk 0:00:23]}  Kg7 {[%clk 0:02:09]} 37. Be7 {[%clk 0:00:23]}  g5 {[%clk 0:02:09]} 38. h4 {[%clk 0:00:23]}  Kg6 {[%clk 0:02:09]} 39. hxg5 {[%clk 0:00:23]}  hxg5 {[%clk 0:02:09]} 40. Bxg5 {[%clk 0:00:23]}  Kxg5 {[%clk 0:02:09]} 41. Rxf7 {[%clk 0:00:23]}  a5 {[%clk 0:02:09]} 42. Kxe6 {[%clk 0:00:23]}  a4 {[%clk 0:02:09]} 43. Kd5 {[%clk 0:00:23]}  a3 {[%clk 0:02:19]} 44. Rf1 {[%clk 0:00:37]}  a2 {[%clk 0:02:19]} 45. Ra1 {[%clk 0:00:37]}  Kf4 {[%clk 0:02:19]} 46. Kc4 {[%clk 0:00:37]}  Ke3 {[%clk 0:02:19]} 47. Kb3 {[%clk 0:00:37]} 1/2-1/2


[Site "http://www.Chess.com"]